bitfinex/quotes_BTCUSD_20241013
["timestamp","ask_amount","ask_price","bid_price","bid_amount"]
[1728804102998,0.82470218,62885.0,62884.0,0.00919517]
[1728804103232,0.75340458,62885.0,62884.0,0.00919517]
[1728804104806,1.02392539,62885.0,62884.0,0.00919517]
[1728804105036,1.02392754,62885.0,62884.0,0.00919517]
[1728804106666,0.92886388,62885.0,62884.0,0.0042152]
[1728804107149,1.02392754,62885.0,62884.0,0.0091952]
[1728804109753,1.02395875,62885.0,62884.0,0.0091952]
[1728804110646,1.02395875,62885.0,62884.0,0.00919525]
[1728804112020,1.04772741,62885.0,62884.0,0.00919525]
[1728804112242,0.92888412,62885.0,62884.0,0.00919525]
[1728804112920,0.95379311,62885.0,62884.0,0.00919525]
[1728804113138,1.04888143,62885.0,62884.0,0.00919525]
[1728804113610,0.95379311,62885.0,62884.0,0.00919525]
[1728804114983,1.0726364,62885.0,62884.0,0.00919525]
[1728804115905,0.95379311,62885.0,62884.0,0.00919525]
[1728804116378,1.0726364,62885.0,62884.0,0.00919525]
[1728804116817,1.07277378,62885.0,62884.0,0.00919525]
[1728804118596,0.92896603,62885.0,62884.0,0.00919528]
[1728804119537,0.9290198,62885.0,62884.0,0.00919528]
[1728804122009,0.95392872,62885.0,62884.0,0.00919528]
[1728804122925,0.92904444,62885.0,62884.0,0.00919528]
[1728804124123,0.84914444,62885.0,62884.0,0.00919528]
[1728804126498,0.87405335,62885.0,62884.0,0.00919528]
[1728804127820,0.87404746,62885.0,62884.0,0.00919528]
[1728804128478,0.84913855,62885.0,62884.0,0.00919528]
[1728804132418,0.84914204,62885.0,62884.0,0.00919528]
[1728804134806,0.84914204,62885.0,62884.0,0.0042152]
[1728804135735,0.87405122,62885.0,62884.0,0.0042152]
[1728804137146,0.8740481,62885.0,62884.0,0.0042152]
[1728804138514,0.84913892,62885.0,62884.0,0.0042152]
[1728804141825,0.87404812,62885.0,62884.0,0.0042152]
[1728804148521,0.84913892,62885.0,62884.0,0.0042152]
[1728804151890,0.8491532,62885.0,62884.0,0.0042152]
[1728804156696,0.67350458,62885.0,62884.0,0.0042152]
[1728804156944,0.84915658,62885.0,62884.0,0.0042152]
[1728804159836,0.9613297,62885.0,62884.0,0.0042152]
[1728804160085,2.41770282,62885.0,62884.0,0.0042152]
[1728804160300,2.87402821,62885.0,62884.0,0.0042152]
[1728804160517,3.24670414,62885.0,62884.0,0.0042152]
[1728804160738,3.08620133,62885.0,62884.0,0.0042152]
[1728804161626,2.94874455,62885.0,62884.0,0.0042152]
[1728804161817,2.95474455,62885.0,62884.0,0.0052152]
[1728804162263,0.159045,62875.0,62874.0,0.00082]
[1728804162497,0.61817012,62875.0,62874.0,0.00082]
[1728804162742,0.62874042,62875.0,62874.0,0.00082]
[1728804162958,0.65365405,62875.0,62874.0,0.00082]
[1728804163425,1.05365405,62875.0,62874.0,0.00082]
[1728804163633,1.05765405,62875.0,62874.0,0.00082]
[1728804164767,0.86928093,62875.0,62874.0,0.00082]
[1728804165194,0.89684795,62875.0,62874.0,0.00082]
[1728804165641,0.77818093,62875.0,62874.0,0.00082]
[1728804167587,0.87306781,62875.0,62874.0,0.00082]
[1728804168465,0.84815418,62875.0,62874.0,0.00082]
[1728804169596,0.7532673,62875.0,62874.0,0.00082]
[1728804170554,0.5776153,62875.0,62874.0,0.00082]
[1728804171677,0.64874773,62875.0,62874.0,0.00082]
[1728804176567,0.5776153,62875.0,62874.0,0.00082]
[1728804179032,0.5776153,62875.0,62874.0,0.00072]
[1728804179248,0.159048,62874.0,62873.0,0.00074]
[1728804179460,0.159048,62874.0,62873.0,0.00064]
[1728804179461,0.20645122,62874.0,62873.0,0.00064]
[1728804179685,0.21688968,62874.0,62873.0,0.00064]
[1728804179916,0.21688968,62874.0,62873.0,0.00054]
[1728804180126,0.05784168,62874.0,62872.0,0.000559]
[1728804180378,0.15905,62873.0,62872.0,0.000459]
[1728804180824,0.56948475,62873.0,62872.0,0.000359]
[1728804181042,0.56948475,62873.0,62868.0,0.020479]
[1728804181043,0.15906,62869.0,62868.0,0.020479]
[1728804181281,0.15906,62869.0,62868.0,0.020379]
[1728804181503,0.1694799,62869.0,62868.0,0.020379]
[1728804181736,0.1694799,62869.0,62868.0,0.020179]
[1728804181962,0.1694799,62869.0,62868.0,0.019379]
[1728804182452,0.1694799,62869.0,62868.0,0.019179]
[1728804182747,0.58926383,62869.0,62868.0,0.018979]
[1728804182966,0.66035663,62869.0,62868.0,0.020479]
[1728804183189,1.02543378,62869.0,62868.0,0.020479]
[1728804183447,1.42543378,62869.0,62868.0,0.018379]
[1728804183681,1.42543378,62869.0,62868.0,0.018279]
[1728804183948,1.43238795,62869.0,62868.0,0.018279]
[1728804184202,1.43238795,62869.0,62868.0,0.020279]
[1728804184463,1.43238795,62869.0,62868.0,0.018279]
[1728804184672,1.44338795,62869.0,62868.0,0.018279]
[1728804185123,1.43638795,62869.0,62868.0,0.018279]
[1728804185562,1.44638795,62869.0,62868.0,0.018279]
[1728804188287,1.56474316,62869.0,62868.0,0.018279]
[1728804191461,1.58966237,62869.0,62868.0,0.018279]
[1728804192661,1.58966237,62869.0,62861.0,0.0005]
[1728804192662,0.55242424,62862.0,62861.0,0.0005]
[1728804192934,1.00686231,62862.0,62861.0,0.0005]
[1728804193191,1.0186241,62862.0,62861.0,0.0005]
[1728804193442,1.02523213,62862.0,62861.0,0.0005]
[1728804193663,1.42523213,62862.0,62861.0,0.0005]
[1728804194108,1.58660184,62862.0,62861.0,0.0005]
[1728804194334,1.70486131,62862.0,62861.0,0.0005]
[1728804194584,1.71886131,62862.0,62861.0,0.0005]
[1728804196003,1.73286131,62862.0,62861.0,0.0005]
[1728804196221,1.61460184,62862.0,62861.0,0.0005]
[1728804196648,1.73286131,62862.0,62861.0,0.0005]
[1728804197078,1.62068819,62862.0,62861.0,0.0005]
[1728804197341,1.50242872,62862.0,62861.0,0.0005]
[1728804198234,1.50242872,62862.0,62861.0,0.00132]
[1728804198445,1.58967986,62862.0,62861.0,0.00132]
[1728804198666,1.47750674,62862.0,62861.0,0.00132]
[1728804198888,1.58967986,62862.0,62861.0,0.00132]
[1728804199993,1.47750674,62862.0,62861.0,0.00132]
[1728804200258,1.58967986,62862.0,62861.0,0.00132]
[1728804200484,1.70793933,62862.0,62861.0,0.00132]
[1728804201409,1.58967986,62862.0,62861.0,0.00132]
[1728804201629,1.73286152,62862.0,62861.0,0.00132]
[1728804202778,1.73253456,62862.0,62861.0,0.00132]
[1728804203261,2.99653456,62862.0,62861.0,0.00132]
[1728804203497,2.878293,62862.0,62861.0,0.00132]
[1728804203707,2.76611988,62862.0,62861.0,0.00132]
[1728804205327,2.878293,62862.0,62861.0,0.00132]
[1728804205547,2.76611988,62862.0,62861.0,0.00132]
[1728804208469,2.74119769,62862.0,62861.0,0.00132]
[1728804209378,2.85337081,62862.0,62861.0,0.00132]
[1728804209597,2.74119769,62862.0,62861.0,0.00132]
[1728804211421,2.76611938,62862.0,62861.0,0.00132]
[1728804213394,2.8782925,62862.0,62861.0,0.00132]
[1728804213681,2.76611938,62862.0,62861.0,0.00132]
[1728804214393,2.8782925,62862.0,62861.0,0.00132]
[1728804217302,2.87844758,62862.0,62861.0,0.00132]
[1728804218022,2.76627446,62862.0,62861.0,0.00132]
[1728804218454,2.74135277,62862.0,62861.0,0.00132]
[1728804221674,2.9082906,62862.0,62861.0,0.00132]
[1728804222620,3.01115705,62862.0,62861.0,0.00132]
[1728804223811,2.30469927,62862.0,62861.0,0.00132]
[1728804224023,2.06250785,62862.0,62861.0,0.07742]
[1728804224257,2.18101181,62862.0,62861.0,0.07742]
[1728804224472,2.06250785,62862.0,62861.0,0.07742]
[1728804224689,2.03450785,62862.0,62861.0,0.07742]
[1728804224945,2.12934255,62862.0,62861.0,0.07742]
[1728804225153,2.25551567,62862.0,62861.0,0.07742]
[1728804225344,2.24151567,62862.0,62861.0,0.07742]
[1728804225605,2.26522435,62862.0,62861.0,0.07742]
[1728804225850,2.16068097,62862.0,62861.0,0.07742]
[1728804226072,2.27922435,62862.0,62861.0,0.07742]
[1728804226302,2.16068097,62862.0,62861.0,0.07742]
[1728804226530,2.17068097,62862.0,62861.0,0.07742]
[1728804226777,2.17102265,62862.0,62861.0,0.07742]
[1728804226993,0.89302265,62862.0,62861.0,0.07742]
[1728804227472,0.90302265,62862.0,62861.0,0.07742]
[1728804228404,0.87810073,62862.0,62861.0,0.07742]
[1728804231389,0.87825186,62862.0,62861.0,0.07742]
[1728804232545,0.76607874,62862.0,62861.0,0.07742]
[1728804237769,0.88475639,62862.0,62861.0,0.07742]
[1728804238455,0.76607874,62862.0,62861.0,0.07742]
[1728804238719,0.70194002,62862.0,62861.0,0.17552]
[1728804238950,0.47923359,62862.0,62861.0,0.31958312]
[1728804239164,0.43176179,62862.0,62861.0,0.48364595]
[1728804239415,0.03176179,62862.0,62861.0,0.48364595]
[1728804239655,0.02176179,62862.0,62861.0,0.21239183]
[1728804239844,0.01476179,62862.0,62861.0,0.21239183]
[1728804240380,0.01176179,62862.0,62861.0,0.21339183]
[1728804240621,0.01176179,62862.0,62861.0,0.21239183]
[1728804240838,0.001,62862.0,62861.0,0.38184271]
[1728804241076,0.01269201,62862.0,62861.0,0.40798572]
[1728804241303,0.002,62862.0,62861.0,0.67923984]
[1728804241530,0.01272585,62862.0,62861.0,0.67923984]
[1728804241759,0.002,62862.0,62861.0,0.68721013]
[1728804242001,0.002,62862.0,62861.0,0.69221013]
[1728804243139,0.001,62862.0,62861.0,0.69021013]
[1728804243370,0.00164,62868.0,62867.0,0.361865]
[1728804243609,0.00164,62868.0,62867.0,0.67213396]
[1728804243827,0.01247674,62868.0,62867.0,0.68010313]
[1728804244277,0.00164,62868.0,62867.0,0.67213396]
[1728804244723,0.00164,62868.0,62867.0,0.67413396]
[1728804245171,0.00164,62868.0,62867.0,0.78830708]
[1728804245634,0.00164,62868.0,62867.0,0.68410167]
[1728804245847,0.00164,62868.0,62867.0,0.68210167]
[1728804246259,0.00164,62868.0,62867.0,0.67713272]
[1728804246518,0.00164,62868.0,62867.0,0.68510167]
[1728804248564,0.00164,62868.0,62867.0,0.67713272]
[1728804248792,0.00164,62868.0,62867.0,0.67215213]
[1728804249031,0.00164,62868.0,62867.0,0.67713246]
[1728804249311,0.00164,62868.0,62867.0,0.67413246]
[1728804249542,0.00164,62868.0,62867.0,0.6721325]
[1728804249778,0.00364,62868.0,62867.0,0.6911325]
[1728804256476,0.00364,62868.0,62867.0,0.69113251]
[1728804257378,0.00364,62868.0,62867.0,0.69910112]
[1728804257595,0.00364,62868.0,62867.0,0.69113251]
[1728804257813,0.00364,62868.0,62867.0,0.69910112]
[1728804258242,0.00364,62868.0,62867.0,0.69113251]
[1728804258467,0.00364,62868.0,62867.0,0.69910112]
[1728804260655,0.00364,62868.0,62867.0,0.68615213]
[1728804260890,0.00364,62868.0,62867.0,0.69910112]
[1728804261612,0.00364,62868.0,62867.0,0.68615213]
[1728804261854,0.00364,62868.0,62867.0,0.69910112]
[1728804265934,0.00364,62868.0,62867.0,0.586928]
[1728804266176,0.00364,62868.0,62867.0,0.69910112]
[1728804267038,0.00364,62868.0,62867.0,0.69992112]
[1728804267449,0.00364,62868.0,62867.0,0.71182786]
[1728804271305,0.00164,62869.0,62868.0,0.005]
[1728804271585,0.00164,62869.0,62868.0,0.40503274]
[1728804272484,0.00264,62869.0,62868.0,0.41603274]
[1728804272718,0.00264,62869.0,62868.0,0.40308375]
[1728804272944,0.00264,62869.0,62868.0,0.41603273]
[1728804273945,0.00364,62869.0,62868.0,0.42503273]
[1728804276276,0.00364,62869.0,62868.0,0.41312599]
[1728804276483,0.00364,62869.0,62868.0,0.42507623]
[1728804277884,0.00364,62869.0,62868.0,0.43444473]
[1728804281346,0.00364,62869.0,62868.0,0.43444645]
[1728804283787,0.00364,62869.0,62868.0,0.40954551]
[1728804284018,0.00364,62869.0,62868.0,0.43444644]
[1728804287478,0.00364,62869.0,62868.0,0.40954551]
[1728804287689,0.00364,62869.0,62868.0,0.42249468]
[1728804288117,0.00364,62869.0,62868.0,0.43444562]
[1728804290818,0.00364,62869.0,62868.0,0.43526562]
[1728804291027,0.00364,62869.0,62868.0,0.42231645]
[1728804291253,0.00364,62869.0,62868.0,0.43526544]
[1728804294269,0.00364,62869.0,62868.0,0.45111833]
[1728804294925,0.00364,62869.0,62868.0,0.45111818]
[1728804296441,0.00364,62869.0,62868.0,0.43526529]
[1728804298934,0.00364,62869.0,62868.0,0.27620229]
[1728804299181,0.01438306,62869.0,62868.0,0.27120229]
[1728804299397,0.01438306,62869.0,62868.0,0.27620229]
[1728804299398,0.00364,62869.0,62868.0,0.27620229]
[1728804299632,0.01438306,62869.0,62868.0,0.43526529]
[1728804299842,0.00364,62869.0,62868.0,0.43526529]
[1728804300069,0.01438306,62869.0,62868.0,0.43526529]
[1728804300298,0.01442506,62869.0,62868.0,0.43526529]
[1728804301195,0.01442506,62869.0,62868.0,0.41036551]
[1728804301407,0.01442506,62869.0,62868.0,0.4183344]
[1728804301652,0.01442506,62869.0,62868.0,0.26126362]
[1728804301868,0.01442506,62869.0,62868.0,0.2692325]
[1728804302079,0.01442506,62869.0,62868.0,0.28118308]
[1728804302287,0.01442506,62869.0,62868.0,0.44024608]
[1728804302937,0.01442506,62869.0,62868.0,0.28118308]
[1728804305777,0.01442506,62869.0,62868.0,0.43524608]
[1728804305987,0.01442506,62869.0,62868.0,0.27618308]
[1728804306460,0.01442506,62869.0,62868.0,0.28118308]
[1728804306702,0.17348506,62869.0,62868.0,0.08759057]
[1728804306925,0.40252368,62869.0,62868.0,0.07063999]
[1728804307164,0.4025083,62869.0,62868.0,0.07063999]
[1728804307389,0.35498506,62869.0,62868.0,0.07063999]
[1728804307854,0.426293,62869.0,62868.0,0.05963999]
[1728804308060,0.425293,62869.0,62868.0,0.05963999]
[1728804308270,0.75398506,62869.0,62868.0,0.05763999]
[1728804308492,0.75498506,62869.0,62868.0,0.06463999]
[1728804308710,0.75398506,62869.0,62868.0,0.05763999]
[1728804309146,0.75398506,62869.0,62868.0,0.05963999]
[1728804309359,0.80148934,62869.0,62868.0,0.05963999]
[1728804309559,0.80148898,62869.0,62868.0,0.05963999]
[1728804309785,0.80048898,62869.0,62868.0,0.05264142]
[1728804310004,0.80048898,62869.0,62868.0,0.05464142]
[1728804310259,0.80048898,62869.0,62868.0,0.04667166]
[1728804310951,0.80048898,62869.0,62868.0,0.0416911]
[1728804311184,0.75298506,62869.0,62868.0,0.0416911]
[1728804311629,0.80047546,62869.0,62868.0,0.0416911]
[1728804312053,0.75298506,62869.0,62868.0,0.0416911]
[1728804312260,0.80046997,62869.0,62868.0,0.0416911]
[1728804313312,0.75298506,62869.0,62868.0,0.0416911]
[1728804317515,0.59392506,62869.0,62868.0,0.0416911]
[1728804317752,0.75298506,62869.0,62868.0,0.0416911]
[1728804322887,0.41242506,62869.0,62868.0,0.0416911]
[1728804323119,0.41242506,62869.0,62868.0,0.23172339]
[1728804323586,0.01242506,62869.0,62868.0,0.23172339]
[1728804323830,0.01242506,62869.0,62868.0,0.3929474]
[1728804324292,0.01242506,62869.0,62867.0,0.11299312]
[1728804324527,0.01242506,62869.0,62867.0,0.30610713]
[1728804324742,0.00164,62869.0,62868.0,0.43297701]
[1728804324961,0.00164,62869.0,62868.0,0.43379701]
[1728804326314,0.00264,62869.0,62868.0,0.47573143]
[1728804327026,0.00364,62869.0,62868.0,0.48273143]
[1728804327236,0.00364,62869.0,62868.0,0.38999701]
[1728804330066,0.01436573,62869.0,62868.0,0.38999701]
[1728804330277,0.00364,62869.0,62868.0,0.38999701]
[1728804330493,0.01436573,62869.0,62868.0,0.38999701]
[1728804330734,0.00364,62869.0,62868.0,0.38999701]
[1728804330959,0.01436573,62869.0,62868.0,0.38999701]
[1728804331172,0.00364,62869.0,62868.0,0.38999701]
[1728804331383,0.01436573,62869.0,62868.0,0.38999701]
[1728804331606,0.00364,62869.0,62868.0,0.38999701]
[1728804332053,0.00284,62869.0,62868.0,0.38999701]
[1728804332263,0.00274,62869.0,62868.0,0.38999701]
[1728804332471,0.01346573,62869.0,62868.0,0.38999701]
[1728804332677,0.01336573,62869.0,62868.0,0.38999701]
[1728804332892,0.01276573,62869.0,62868.0,0.38999701]
[1728804333368,0.01266573,62869.0,62868.0,0.38999701]
[1728804333593,0.01236573,62869.0,62868.0,0.38999701]
[1728804333837,0.01176573,62869.0,62868.0,0.38999701]
[1728804334063,0.01166573,62869.0,62868.0,0.38999701]
[1728804334290,0.01146573,62869.0,62868.0,0.38999701]
[1728804334516,0.01136573,62869.0,62868.0,0.39796606]
[1728804334739,0.01086573,62869.0,62868.0,0.39796606]
[1728804334963,0.01076573,62869.0,62868.0,0.39796606]
[1728804335204,0.01046573,62869.0,62868.0,0.39796606]
[1728804335439,0.01026573,62869.0,62868.0,0.39796606]
[1728804335662,0.00986573,62869.0,62868.0,0.39796606]
[1728804335938,0.00976573,62869.0,62868.0,0.39796606]
[1728804336163,0.00936573,62869.0,62868.0,0.39796606]
[1728804336383,0.01100573,62869.0,62868.0,0.40294671]
[1728804336604,0.00164,62869.0,62868.0,0.40294671]
[1728804337064,0.01215524,62869.0,62868.0,0.40294671]
[1728804339581,0.01215524,62869.0,62868.0,0.41218862]
[1728804343359,0.01215524,62869.0,62868.0,0.42412826]
[1728804348470,0.01215524,62869.0,62868.0,0.41218862]
[1728804349383,0.01215524,62869.0,62868.0,0.42413318]
[1728804355040,0.01215524,62869.0,62868.0,0.41118348]
[1728804355259,0.01215524,62869.0,62868.0,0.4241332]
[1728804360231,0.01215524,62869.0,62868.0,0.2650702]
[1728804362356,0.01215524,62869.0,62868.0,0.25312564]
[1728804362585,0.01215524,62869.0,62868.0,0.26507772]
[1728804362788,0.01215524,62869.0,62868.0,0.26009706]
[1728804362992,0.01215524,62869.0,62868.0,0.26507772]
[1728804363201,0.01215524,62869.0,62868.0,0.25312564]
[1728804363538,0.01215524,62869.0,62868.0,0.41218864]
[1728804366036,0.00164,62869.0,62868.0,0.39923892]
[1728804366215,0.00164,62869.0,62868.0,0.41218857]
[1728804366216,0.01213556,62869.0,62868.0,0.41218857]
[1728804367860,0.01213556,62869.0,62868.0,0.49198857]
[1728804368072,0.00164,62869.0,62868.0,0.49198857]
[1728804368287,0.01253509,62869.0,62868.0,0.49198857]
[1728804368513,0.00164,62869.0,62868.0,0.49198857]
[1728804368951,0.01253509,62869.0,62868.0,0.49198857]
[1728804369194,0.00164,62869.0,62868.0,0.49198857]
[1728804369410,0.01253509,62869.0,62868.0,0.49198857]
[1728804369616,0.00164,62869.0,62868.0,0.47903892]
[1728804369831,0.01253509,62869.0,62868.0,0.49198851]
[1728804370056,0.00164,62869.0,62868.0,0.49198851]
[1728804370975,0.01253509,62869.0,62868.0,0.49198851]
[1728804371188,0.00164,62869.0,62868.0,0.49198851]
[1728804371407,0.01253509,62869.0,62868.0,0.49198851]
[1728804371611,0.00164,62869.0,62868.0,0.49198851]
[1728804371844,0.01253095,62869.0,62868.0,0.49198851]
[1728804372034,0.00164,62869.0,62868.0,0.49198851]
[1728804372260,0.01253095,62869.0,62868.0,0.49198851]
[1728804372472,0.00164,62869.0,62868.0,0.49198851]
[1728804372673,0.01253095,62869.0,62868.0,0.49198851]
[1728804372881,0.00164,62869.0,62868.0,0.49198851]
[1728804373103,0.01253095,62869.0,62868.0,0.49198851]
[1728804377685,0.01253095,62869.0,62868.0,0.49698851]
[1728804380883,0.01253095,62869.0,62868.0,0.49698846]
[1728804381308,0.01253095,62869.0,62868.0,0.48403892]
[1728804381650,0.01253095,62869.0,62868.0,0.49698848]
[1728804382853,0.01253095,62869.0,62868.0,0.49198848]
[1728804383931,0.01253095,62869.0,62868.0,0.50493804]
[1728804384106,0.00164,62869.0,62868.0,0.50493804]
[1728804384329,0.00164,62869.0,62868.0,0.47903892]
[1728804384523,0.00164,62869.0,62868.0,0.59121204]
[1728804385900,0.00164,62869.0,62868.0,0.60416161]
[1728804390159,0.00164,62869.0,62868.0,0.72133473]
[1728804390376,0.00164,62869.0,62868.0,0.82333473]
[1728804391250,0.00164,62869.0,62868.0,0.82333394]
[1728804391667,0.00164,62869.0,62868.0,0.82133394]
[1728804392993,0.23718393,62876.0,62875.0,0.159045]
[1728804393239,0.23718393,62876.0,62875.0,0.46839091]
[1728804393457,0.24811452,62876.0,62875.0,0.46839091]
[1728804393677,0.01093059,62876.0,62875.0,0.46839091]
[1728804394988,0.04753805,62879.0,62877.0,0.15904]
[1728804395206,0.04753805,62879.0,62878.0,0.01294878]
[1728804396696,0.05153805,62879.0,62878.0,0.01294878]
[1728804397313,0.004,62879.0,62878.0,0.01294878]
[1728804397931,0.008,62879.0,62878.0,0.01294878]
[1728804398557,0.008,62879.0,62878.0,0.01294868]
[1728804400432,0.008,62879.0,62878.0,0.17198668]
[1728804400638,0.008,62879.0,62878.0,0.17417269]
[1728804400851,0.008,62879.0,62878.0,0.33321069]
[1728804401497,0.00964,62879.0,62878.0,0.33321069]
[1728804401972,0.00964,62879.0,62878.0,0.46838381]
[1728804402239,0.00964,62879.0,62878.0,0.50027381]
[1728804405801,0.00964,62879.0,62878.0,0.49529355]
[1728804406046,0.00964,62879.0,62878.0,0.5002718]
[1728804407864,0.01364,62879.0,62878.0,0.5002718]
[1728804408977,0.02065512,62879.0,62878.0,0.5002718]
[1728804409206,0.02165512,62879.0,62878.0,0.5082718]
[1728804410721,0.01765512,62879.0,62878.0,0.5082718]
[1728804410955,0.02165512,62879.0,62878.0,0.5082718]
[1728804411186,0.01765512,62879.0,62878.0,0.5082718]
[1728804411639,0.00764,62879.0,62878.0,0.5162718]
[1728804413826,0.01865512,62879.0,62878.0,0.5162718]
[1728804414013,0.00764,62879.0,62878.0,0.5162718]
[1728804414266,0.01865512,62879.0,62878.0,0.5162718]
[1728804414489,0.00764,62879.0,62878.0,0.5162718]
[1728804414709,0.01865512,62879.0,62878.0,0.5162718]
[1728804414942,0.00764,62879.0,62878.0,0.5162718]
[1728804415363,0.01865512,62879.0,62878.0,0.5162718]
[1728804416020,0.00764,62879.0,62878.0,0.5162718]
[1728804423296,0.00764,62879.0,62878.0,0.50332513]
[1728804423503,0.00764,62879.0,62878.0,0.51627181]
[1728804441396,0.00764,62879.0,62878.0,0.50332513]
[1728804441636,0.00764,62879.0,62878.0,0.51627181]
[1728804444401,0.00764,62879.0,62878.0,0.50332513]
[1728804444650,0.00764,62879.0,62878.0,0.50830463]
[1728804444887,0.00764,62879.0,62878.0,0.51627183]
[1728804446071,0.00764,62879.0,62878.0,0.50332513]
[1728804446301,0.00764,62879.0,62878.0,0.52551145]
[1728804457255,0.00764,62879.0,62878.0,0.51256475]
[1728804457471,0.00764,62879.0,62878.0,0.52551143]
[1728804468556,0.00764,62879.0,62878.0,0.41333831]
[1728804471943,0.00764,62879.0,62878.0,0.40537113]
[1728804472162,0.00764,62879.0,62878.0,0.41333833]
[1728804475713,0.00764,62879.0,62878.0,0.40039163]
[1728804475926,0.00764,62879.0,62878.0,0.41333833]
[1728804479909,0.00764,62879.0,62878.0,0.39033833]
[1728804480151,0.01872301,62879.0,62878.0,0.39033833]
[1728804480811,0.01872301,62879.0,62878.0,0.38535903]
[1728804482410,0.01872301,62879.0,62878.0,0.37739163]
[1728804482648,0.01872301,62879.0,62878.0,0.38535903]
[1728804485799,0.01872301,62879.0,62878.0,0.37739163]
[1728804486019,0.01872301,62879.0,62878.0,0.38535902]
[1728804490470,0.01872301,62879.0,62878.0,0.3761194]
[1728804493120,0.01872301,62879.0,62878.0,0.36815201]
[1728804493341,0.01872301,62879.0,62878.0,0.3761194]
[1728804496951,0.01872301,62879.0,62878.0,0.37611941]
[1728804498163,0.01872301,62879.0,62878.0,0.38514809]
[1728804499731,0.01972301,62879.0,62878.0,0.38514809]
[1728804500454,0.01972301,62879.0,62878.0,0.38514816]
[1728804504152,0.01972301,62879.0,62878.0,0.38514821]
[1728804505794,0.01972301,62879.0,62878.0,0.2239242]
[1728804506220,0.01972301,62879.0,62878.0,0.21595668]
[1728804506474,0.01972301,62879.0,62878.0,0.0648862]
[1728804506706,0.27025801,62879.0,62878.0,0.0648862]
[1728804507417,0.11122301,62879.0,62878.0,0.0648862]
[1728804507641,0.27025801,62879.0,62878.0,0.0648862]
[1728804508105,0.27025801,62879.0,62878.0,0.05691868]
[1728804508340,0.67025801,62879.0,62878.0,0.06488665]
[1728804509438,0.51122301,62879.0,62878.0,0.06488665]
[1728804511772,0.51122301,62879.0,62878.0,0.05691868]
[1728804512236,0.51122301,62879.0,62878.0,0.07285468]
[1728804515665,0.51122301,62879.0,62878.0,0.07285467]
[1728804516520,0.51122301,62879.0,62878.0,0.06488667]
[1728804520495,0.51122301,62879.0,62878.0,0.05585799]
[1728804523171,0.51122301,62879.0,62878.0,0.05585798]
[1728804524882,0.51122301,62879.0,62878.0,0.06521121]
[1728804526244,0.41972301,62879.0,62878.0,0.06521121]
[1728804526920,0.41972301,62879.0,62878.0,0.05724323]
[1728804527139,0.41972301,62879.0,62878.0,0.06521121]
[1728804530276,0.41972301,62879.0,62878.0,0.22424921]
[1728804530771,0.41972301,62879.0,62878.0,0.21628123]
[1728804530995,0.41972301,62879.0,62878.0,0.22424921]
[1728804539491,0.41972301,62879.0,62878.0,0.21489598]
[1728804540771,0.41972301,62879.0,62878.0,0.21987597]
[1728804542066,0.01972301,62879.0,62878.0,0.21987597]
[1728804542952,0.01972301,62879.0,62878.0,0.23182771]
[1728804544097,0.01972301,62879.0,62878.0,0.21987597]
[1728804544307,0.41972301,62879.0,62878.0,0.23182777]
[1728804546949,0.41972301,62879.0,62878.0,0.2410566]
[1728804547862,0.41972301,62879.0,62878.0,0.24105664]
[1728804551294,0.46729217,62879.0,62878.0,0.24105664]
[1728804551532,0.46729217,62879.0,62878.0,0.08201864]
[1728804551966,0.46729217,62879.0,62878.0,0.24105664]
[1728804552441,0.46729217,62879.0,62878.0,0.23182781]
[1728804552667,0.06729217,62879.0,62878.0,0.23182781]
[1728804555232,0.06729217,62879.0,62878.0,0.206928]
[1728804555455,0.06729217,62879.0,62878.0,0.23182784]
[1728804556579,0.06729217,62879.0,62878.0,0.23082784]
[1728804557927,0.06729217,62879.0,62878.0,0.23979414]
[1728804559334,0.06729217,62879.0,62878.0,0.23979404]
[1728804559568,0.01972301,62879.0,62878.0,0.23979404]
[1728804559784,0.06729217,62879.0,62878.0,0.23979404]
[1728804560199,0.01972301,62879.0,62878.0,0.23979404]
[1728804561861,0.01972301,62879.0,62876.0,0.318085]
[1728804562089,0.28611309,62883.0,62879.0,0.159034]
[1728804563273,0.04756916,62883.0,62877.0,0.159039]
[1728804563512,0.04756916,62883.0,62876.0,0.03188]
[1728804563723,0.159028,62882.0,62877.0,0.15904]
[1728804564207,0.44756916,62883.0,62877.0,0.15904]
[1728804564466,0.44756916,62883.0,62878.0,0.159036]
[1728804564677,0.44756916,62883.0,62877.0,0.159038]
[1728804564678,0.60659616,62883.0,62877.0,0.159038]
[1728804564902,0.60659616,62883.0,62878.0,0.159036]
[1728804566041,0.20659616,62883.0,62878.0,0.159036]
[1728804568359,0.20823616,62883.0,62878.0,0.159036]
[1728804569747,0.00868613,62882.0,62878.0,0.159036]
[1728804571810,0.04758584,62881.0,62878.0,0.159036]
[1728804572024,0.04758584,62880.0,62879.0,0.00796789]
[1728804572248,0.05626455,62880.0,62879.0,0.00796789]
[1728804573410,0.05622455,62880.0,62879.0,0.16700289]
[1728804573862,0.05622455,62880.0,62879.0,0.17198282]
[1728804575221,0.00867871,62880.0,62879.0,0.17198282]
[1728804575709,0.07137713,62882.0,62879.0,0.01294782]
[1728804575926,0.07137713,62882.0,62877.0,0.00082]
[1728804576150,0.00868474,62881.0,62878.0,0.17198382]
[1728804576374,0.00868474,62881.0,62879.0,0.01294782]
[1728804576595,0.00868474,62881.0,62880.0,0.01294782]
[1728804579108,0.00868474,62881.0,62880.0,0.01594782]
[1728804582029,0.00868474,62881.0,62880.0,0.003]
[1728804582261,0.00868474,62881.0,62880.0,0.00797993]
[1728804582493,0.00868474,62881.0,62880.0,0.01594782]
[1728804583649,0.00868474,62881.0,62880.0,0.01994782]
[1728804588430,0.00892859,62881.0,62880.0,0.01994782]
[1728804591010,0.00892859,62881.0,62880.0,0.17898082]
[1728804591226,0.00892859,62881.0,62880.0,0.01994782]
[1728804592828,0.05651328,62881.0,62880.0,0.01994782]
[1728804593040,0.00892859,62881.0,62880.0,0.01994782]
[1728804594827,0.01056859,62881.0,62880.0,0.01994782]
[1728804600432,0.16959859,62881.0,62880.0,0.01994782]
[1728804601541,0.24097621,62881.0,62880.0,0.01994782]
[1728804602926,0.24098099,62881.0,62880.0,0.01994782]
[1728804607605,0.24099144,62881.0,62880.0,0.007]
[1728804607859,0.24099144,62881.0,62880.0,0.01994782]
[1728804611698,0.24099144,62881.0,62880.0,0.02492775]
[1728804616022,0.33589144,62881.0,62880.0,0.02492775]
[1728804617128,0.33589144,62881.0,62880.0,0.01594782]
[1728804617349,0.33589144,62881.0,62880.0,0.01794782]
[1728804618023,0.33589144,62881.0,62880.0,0.01494782]
[1728804618763,0.33589144,62881.0,62880.0,0.01294782]
[1728804619000,0.33589144,62881.0,62880.0,0.01494782]